Workbook

Sheet QUADRO RESUMO
B2: PLANILHA DE CUSTOS E FORMAÇÃO DE PREÇOS
B4: QUADRO RESUMO
B5: Grupo | C5: Item | D5: Posto de Trabalho / Função | E5: Remuneração (CCT) | F5: Módulo mínimo de contratação | G5: Módulo máximo de contratação | H5: Custo unitário mensal do item | I5: Custo mensal da contratação mínima | J5: Custo anual da contratação mínima | K5: Custo mensal da contratação máxima | L5: Custo anual da contratação máxima
B6: 1 | C6: 1 | D6: Apoio administrativo especializado | E6: ='APOIO ESPECIALI - Módulos 1 a 6'!D19 -> 5857.533333 | F6: 3 | G6: 6 | H6: ='APOIO ESPECIALI - Módulos 1 a 6'!D121 -> 12742.97756 | I6: =H6*F6 -> 38228.93268 | J6: =I6*12 -> 458747.1921 | K6: =G6*H6 -> 76457.86535 | L6: =K6*12 -> 917494.3842
C7: 2 | D7: Assistente de apoio à gestão | E7: ='APOIO À GESTÃO - Módulos 1 a 6'!D24 -> 1954.87 | F7: 3 | G7: 6 | H7: ='APOIO À GESTÃO - Módulos 1 a 6'!D120 -> 5006.677614 | I7: =H7*F7 -> 15020.03284 | J7: =I7*12 -> 180240.3941 | K7: =G7*H7 -> 30040.06568 | L7: =K7*12 -> 360480.7882
C8: 3 | D8: Auxiliar de serviços gerais | E8: ='SERVIÇOS GERAIS - Módulos 1 a 6'!D19 -> 1621 | F8: 1 | G8: 2 | H8: ='SERVIÇOS GERAIS - Módulos 1 a 6'!D121 -> 4867.016968 | I8: 4867.016968 | J8: 58404.20361 | K8: 9734.033935 | L8: 116808.4072
C9: 4 | D9: Copeira | E9: ='COPEIRA - Módulos 1 a 6'!D19 -> 1621 | F9: 1 | G9: 2 | H9: ='COPEIRA - Módulos 1 a 6'!D121 -> 5588.429119 | I9: 5588.429119 | J9: 67061.14943 | K9: 11176.85824 | L9: 134122.2989
C10: 5 | D10: Motorista | E10: ='MOTORISTA - Módulos 1 a 6'!D18 -> 2171.06 | F10: 2 | G10: 4 | H10: ='MOTORISTA - Módulos 1 a 6'!D122 -> 8441.487344 | I10: 16882.97469 | J10: 202595.6963 | K10: 33765.94938 | L10: 405191.3925
C11: 6 | D11: Recepcionista | E11: ='RECEPCIONISTA - Módulos 1 a 6'!D18 -> 1675.04 | F11: 1 | G11: 2 | H11: ='RECEPCIONISTA - Módulos 1 a 6'!D120 -> 5146.765189 | I11: 5146.765189 | J11: 61761.18227 | K11: 10293.53038 | L11: 123522.3645
B12: Total | F12: =SUM(F6:F11) -> 11 | G12: =SUM(G6:G11) -> 22 | I12: =SUM(I6:I11) -> 85734.15148 | J12: =SUM(J6:J11) -> 1028809.818 | K12: =SUM(K6:K11) -> 171468.303 | L12: =SUM(L6:L11) -> 2057619.636

Sheet APOIO ESPECIALI - Módulos 1 a 6
A1: MÓDULOS 1 A 6 (CUSTOS FIXOS)
A2: Planilha de Custos e Formação de Preços
A3: Assistente de apoio à gestão
A4: Discriminação dos Serviços
A5: Data de apresentação da proposta | D5: Licitante Preencher
A6: Município | D6: Fortaleza - CE
A7: Ano do Acordo, Convenção ou Dissídio Coletivo | D7: CE000086/2025
A8: Tipo de Serviço | D8: Apoio especializado
A9: Unidade de Medida | D9: Posto
A10: Quantidade máxima passível de contratação em função da unidade de medida | D10: ='QUADRO RESUMO'!G6 -> 6
A11: Nº de meses de execução contratual | D11: 12
A12: Regime Tributário da Empresa | D12: Licitante Preencher
A13: Se Optante pelo Simples Nacional, preencher o faturamento acumulado dos últimos 12 meses | D13: Licitante Preencher
A15: Dados complementares para composição dos custos referente à mão-de-obra
A16: 1 | B16: Tipo de serviço | D16: Apoio especializado
A17: 2 | B17: Classificação Brasileira de Ocupações (CBO) | D17: 2523-05
A18: 3 | B18: Salário Nominativo da Categoria Profissional – 6h/dia – 30h semanais (Cláusula 3ª – 23ª Faixa) | D18: 4393.15
A19: 4 | B19: Salário Nominativo da Categoria Profissional – 8h/dia – 40h semanais (proporcional) | D19: =D18/30*40 -> 5857.533333
A20: 5 | B20: Categoria profissional (vinculada à execução contratual) | D20: APOIO ADMINISTRATIVO ESPECIALIZADO
A21: 6 | B21: Data base da categoria (dia/mês/ano) | D21: 2025-01-01
A23: MÓDULO 1 - COMPOSIÇÃO DA REMUNERAÇÃO
A24: 1 | B24: COMPOSIÇÃO DA REMUNERAÇÃO | C24: % | D24: VALOR (R$)
A25: A | B25: Salário Base (Cláusula 3ª) | D25: =D19 -> 5857.533333
A26: B | B26: Adicional Periculosidade | C26: 0.3 | D26: 0
A27: C | B27: Adicional Insalubridade | C27: 20%~40% | D27: 0
A28: D | B28: Adicional Noturno | C28: 0.2 | D28: 0
A29: E | B29: Adicional de Hora Noturna Reduzida | D29: 0
A30: F | B30: Adicional de Hora Extra no Feriado Trabalhado | D30: 0
A31: G | B31: Outros (especificar) | D31: 0
A32: TOTAL DO MÓDULO 1 | D32: =TRUNC(SUM(D25:D31),2) -> 5857.53
A34: MÓDULO 2 – ENCARGOS E BENEFÍCIOS ANUAIS, MENSAIS E DIÁRIOS
A35: Submódulo 2.1 - 13º Salário, Férias e Adicional de Férias | C35: % | D35: VALOR (R$)
A36: A | B36: 13 (Décimo-terceiro) salário (Valor referente a 1/12 x Remuneração.) | C36: 0.0833 | D36: =$D$32*C36 -> 487.932249
A37: B | B37: Adicional de Férias (Valor referente a 1/3 x 1/12 x Remuneração) | C37: 0.0278 | D37: =C37*D32 -> 162.839334
A38: TOTAL SUBMÓDULO 2.1 | C38: =TRUNC(SUM(C36:C37),4) -> 0.1111 | D38: =TRUNC(SUM(D36:D37),2) -> 650.77
A40: Submódulo 2.2 - GPS, FGTS e Outras Contribuições | C40: % | D40: VALOR (R$)
A41: A | B41: INSS (Art. 22, Inciso I, da Lei 8.212, de 24 de julho de 1991.​) | C41: 0.2 | D41: =($D$32+$D$38)*C41 -> 1301.66
A42: B | B42: Salário Educação (Art. 3º, Inciso I, Decreto 87.043, de 22 de março de 1982.​) | C42: 0.025 | D42: =($D$32+$D$38)*C42 -> 162.7075
A43: C | B43: SAT (Art. 22, II, Lei 8.212, de 1991. Resolução MPS/CNPS Nº 1.329, de 25/4/2017.). RAT: 4923-0/02. FAP neutro = 1. Empresa deve preencher de acordo com o valor por ela suportado. | C43: 0.03 | D43: =($D$32+$D$38)*C43 -> 195.249
A44: D | B44: SESC ou SESI (Art. 30, Lei 8.036, de 11 de maio de 1990.) | C44: 0.015 | D44: 97.6245
A45: E | B45: SENAI - SENAC (Art. 1º, caput, Decreto-Lei 6.246, de 1944 (SENAI) e art. 4º, caput do Decreto-Lei 8.621, de 1946. (SENAC). | C45: 0.01 | D45: 65.083
A46: F | B46: SEBRAE (Art. 8º, Lei 8.029, de 12 de abril de 1990.) | C46: 0.006 | D46: 39.0498
A47: G | B47: INCRA (Art. 1°, I, 2 c/c art. 3°, ambos do Decreto-Lei 1.146, de 31 de dezembro de 1970.) | C47: 0.002 | D47: 13.0166
A48: H | B48: FGTS | C48: 0.08 | D48: 520.664
A49: TOTAL SUBMÓDULO 2.2 | C49: =SUM(C41:C48) -> 0.368 | D49: =TRUNC(SUM(D41:D48),2) -> 2395.05
A51: Submódulo 2.3 - Benefícios Mensais e Diários | D51: VALOR (R$)
A52: A | B52: Auxílio Transporte (Clásula 16ª da CCT) | C52: 4.5 | D52: =IF((C52*2*22)-(D25*6%)>0,(C52*2*22)-(D25*6%),0) -> 0
A53: B | B53: Auxílio Refeição/Alimentação (Clásula 15ª da CCT) | C53: 27.6 | D53: =C53*22 -> 607.2
A54: C | B54: Auxílio Creche (Clásula 19ª da CCT - provisão) | C54: 258.79 | D54: =C54*0.04 -> 10.3516
A55: D | B55: Cesta Básica (Clásula 14ª da CCT) | C55: 106 | D55: =C55 -> 106
A56: E | B56: Plano de Saúde / Plano de Assistência e Cuidado Pessoal (Cláusula 17ª da CCT) | C56: 49.35 | D56: =C56 -> 49.35
A57: TOTAL SUBMÓDULO 2.3 | D57: =TRUNC(SUM(D52:D56),2) -> 772.9
A59: QUADRO-RESUMO DO MÓDULO 2 - ENCARGOS, BENEFÍCIOS ANUAIS, MENSAIS E DIÁRIOS
A60: Módulo 2 - Encargos, Benefícios Anuais, Mensais e Diários | D60: VALOR (R$)
A61: 2.1 | B61: 13º Salário, Férias e Adicional de Férias | D61: =D38 -> 650.77
A62: 2.2 | B62: GPS, FGTS e Outras Contribuições | D62: =D49 -> 2395.05
A63: 2.3 | B63: Benefícios Mensais e Diários | D63: =D57 -> 772.9
A64: TOTAL DO MÓDULO 2 | D64: =TRUNC(SUM(D61:D63),2) -> 3818.72
A66: MÓDULO 3 – PROVISÃO PARA RESCISÃO
A67: 3 | B67: PROVISÃO PARA RESCISÃO | C67: % | D67: VALOR (R$)
A68: A | B68: Aviso prévio indenizado (Premissa de que 5% dos funcionários serão demitidos em condições de receber aviso prévio indenizado: 5%/12) | C68: =5%/12 -> 0.004166666667 | D68: =$D$32*C68 -> 24.406375
A69: B | B69: Incidência do FGTS sobre o Aviso prévio indenizado (incidência de 8% do FGTS sobre o % do aviso prévio indenizado) | C69: =0.08*C68 -> 0.0003333333333 | D69: =$D$32*C69 -> 1.95251
A70: C | B70: Multa do FGTS sobre o Aviso Prévio Indenizado (Base de Cálculo da Multa é a soma do módulo 1 com submódulo 2.1 sem incidência dos encargos do 2.2.) | C70: 0.0016 | D70: =($D$32+$D$38)*C70 -> 10.41328
A71: D | B71: Aviso prévio trabalhado (Premissa de que 100% dos funcionários serão demitidos ao final do contrato de 12 meses.) | C71: 0.0194 | D71: =$D$32*C71 -> 113.636082
A72: E | B72: Incidência do Submódulo 2.2 sobre o Aviso Prévio Trabalhado (incidência de 8% do FGTS sobre o % do aviso prévio trabalhado) | C72: =C49*C71 -> 0.0071392 | D72: =$D$32*C72 -> 41.81807818
A73: F | B73: Multa do FGTS sobre o Aviso Prévio Trabalhado (Base de Cálculo da Multa é a soma do módulo 1 com submódulo 2.1 sem incidência dos encargos do 2.2) | C73: =0.4*0.08 -> 0.032 | D73: 187.44096
A74: TOTAL DO MÓDULO 3 | D74: =TRUNC(SUM(D68:D73),2) -> 379.66
A76: MÓDULO 4 – CUSTO DE REPOSIÇÃO DO PROFISSIONAL AUSENTE
A77: Base de Cálculo do Custo do Substituto (BCCS) = Módulos 1 + 2 + Férias - (V. Transporte e V. Alimentação) + 3 | D77: VALOR (R$)
A78: Módulo 1 - Remuneração | D78: =D19 -> 5857.533333
A79: Módulo 2 - Encargos e Benefícios Anuais, Mensais e Diários | D79: =D64 -> 3818.72
A80: Acréscimo das Férias com incidência do 2.2 | D80: =1/12*D32*(1+C49) -> 667.75842
A81: Desconto do Auxílio-Refeição | D81: =-D53 -> -607.2
A82: Módulo 3 - Provisão para Rescisão | D82: =D74 -> 379.66
A83: TOTAL BCCS | D83: =TRUNC(SUM(D78:D82),2) -> 10116.47
A85: Submódulo 4.1 - Substituto nas Ausências Legais | C85: % | D85: VALOR (R$)
A86: A | B86: Férias | C86: 0 | D86: =$D$83*C86 -> 0
A87: B | B87: Faltas e Ausências Legais | C87: 0 | D87: =$D$83*C87 -> 0
A88: C | B88: Licença Paternidade | C88: 0.0002 | D88: 2.023294
A89: D | B89: Acidente de Trabalho | C89: 0.00051 | D89: 5.1593997
A90: E | B90: Auxílio Doença | C90: 0.00111 | D90: 11.2292817
A91: F | B91: Afastamento Maternidade | C91: 0.00039 | D91: 3.9454233
A92: TOTAL MÓDULO 4 | C92: =TRUNC(SUM(C86:C91),4) -> 0.0022 | D92: =TRUNC(SUM(D86:D91),2) -> 22.35
A94: MÓDULO 5 – INSUMOS DIVERSOS
A95: 5 | B95: INSUMOS DIVERSOS | D95: VALOR (R$)
A96: A | B96: Crachá | D96: ='INSUMOS - Módulo 5'!F13 -> 0.2916666667
A98: TOTAL DO MÓDULO 5 | D98: =TRUNC(SUM(D96:D97),2) -> 0.29
A100: MÓDULO 6 – CUSTOS INDIRETOS, TRIBUTOS E LUCRO
A101: 6 | B101: CUSTOS INDIRETOS, TRIBUTOS E LUCRO | C101: % | D101: VALOR (R$)
A102: A | B102: Custos Indiretos | C102: 0.05 | D102: =TRUNC(C102*D119,2) -> 503.92
A103: B | B103: Subtotal 1 (A + Total Custos Diretos) | D103: =D102+D119 -> 10582.47
A104: C | B104: Lucro | C104: 0.1 | D104: =TRUNC(C104*(D102+D119),2) -> 1058.24
A105: D | B105: Subtotal 2 (B+C) | D105: =D103+D104 -> 11640.71
A106: E | B106: TRIBUTOS Tributos (estimado com base no Lucro Presumido - a empresa deverá preencher de acordo com o regime tributário a que é submetida) - (E=(D/(1-Tributos%))x(Tributos%) | C106: 0.0865 | D106: =(D105/(1-C106))*C106 -> 1102.267559
A107: E.1 | B107: COFINS | C107: 0.03
A108: E.2 | B108: PIS | C108: 0.0065
A109: E.3 | B109: ISS | C109: 0.05
A110: TOTAL DO MÓDULO 6 (A+C+E) | D110: =D102+D104+D106 -> 2664.427559
A112: QUADRO RESUMO DO CUSTO POR EMPREGADO
A113: Módulo | D113: VALOR (R$)
A114: A | B114: =A23 -> MÓDULO 1 - COMPOSIÇÃO DA REMUNERAÇÃO | D114: =D32 -> 5857.53
A115: B | B115: =A34 -> MÓDULO 2 – ENCARGOS E BENEFÍCIOS ANUAIS, MENSAIS E DIÁRIOS | D115: =D64 -> 3818.72
A116: C | B116: =A66 -> MÓDULO 3 – PROVISÃO PARA RESCISÃO | D116: =D74 -> 379.66
A117: D | B117: =A76 -> MÓDULO 4 – CUSTO DE REPOSIÇÃO DO PROFISSIONAL AUSENTE | D117: =D92 -> 22.35
A118: E | B118: =A94 -> MÓDULO 5 – INSUMOS DIVERSOS | D118: =D98 -> 0.29
A119: Subtotal (A + B + C + D + E) - Custos Diretos | D119: =TRUNC(SUM(D114:D118),2) -> 10078.55
A120: F | B120: =A100 -> MÓDULO 6 – CUSTOS INDIRETOS, TRIBUTOS E LUCRO | D120: =D110 -> 2664.427559
A121: PREÇO TOTAL POR EMPREGADO / MÊS (CUSTO FIXO) | D121: =D120+D119 -> 12742.97756

Sheet APOIO À GESTÃO - Módulos 1 a 6
A1: MÓDULOS 1 A 6 (CUSTOS FIXOS)
A2: Planilha de Custos e Formação de Preços
A3: Assistente de apoio à gestão
A4: Discriminação dos Serviços
A5: Data de apresentação da proposta | D5: Licitante Preencher
A6: Município | D6: Fortaleza - CE
A7: Ano do Acordo, Convenção ou Dissídio Coletivo | D7: CE000086/2025
A8: Tipo de Serviço | D8: Apoio à gestão
A9: Unidade de Medida | D9: Posto
A10: Quantidade máxima passível de contratação em função da unidade de medida | D10: ='QUADRO RESUMO'!G7 -> 6
A11: Nº de meses de execução contratual | D11: 12
A12: Regime Tributário da Empresa | D12: Licitante Preencher
A13: Se Optante pelo Simples Nacional, preencher o faturamento acumulado dos últimos 12 meses | D13: Licitante Preencher
A15: Dados complementares para composição dos custos referente à mão-de-obra
A16: 1 | B16: Tipo de serviço | D16: Apoio à gestão
A17: 2 | B17: Classificação Brasileira de Ocupações (CBO) | D17: 4110-10
A18: 3 | B18: Salário Nominativo da Categoria Profissional | D18: 1954.87
A19: 4 | B19: Categoria profissional (vinculada à execução contratual) | D19: ASSISTENTE DE APOIO A GESTÃO
A20: 5 | B20: Data base da categoria (dia/mês/ano) | D20: 2025-01-01
A22: MÓDULO 1 - COMPOSIÇÃO DA REMUNERAÇÃO
A23: 1 | B23: COMPOSIÇÃO DA REMUNERAÇÃO | C23: % | D23: VALOR (R$)
A24: A | B24: Salário Base (Cláusula 3ª) | D24: =D18 -> 1954.87
A25: B | B25: Adicional Periculosidade | C25: 0.3 | D25: 0
A26: C | B26: Adicional Insalubridade | C26: 20%~40% | D26: 0
A27: D | B27: Adicional Noturno | C27: 0.2 | D27: 0
A28: E | B28: Adicional de Hora Noturna Reduzida | D28: 0
A29: F | B29: Adicional de Hora Extra no Feriado Trabalhado | D29: 0
A30: G | B30: Outros (especificar) | D30: 0
A31: TOTAL DO MÓDULO 1 | D31: =TRUNC(SUM(D24:D30),2) -> 1954.87
A33: MÓDULO 2 – ENCARGOS E BENEFÍCIOS ANUAIS, MENSAIS E DIÁRIOS
A34: Submódulo 2.1 - 13º Salário, Férias e Adicional de Férias | C34: % | D34: VALOR (R$)
A35: A | B35: 13 (Décimo-terceiro) salário (Valor referente a 1/12 x Remuneração.) | C35: 0.0833 | D35: =$D$31*C35 -> 162.840671
A36: B | B36: Adicional de Férias (Valor referente a 1/3 x 1/12 x Remuneração) | C36: 0.0278 | D36: =C36*D31 -> 54.345386
A37: TOTAL SUBMÓDULO 2.1 | C37: =TRUNC(SUM(C35:C36),4) -> 0.1111 | D37: =TRUNC(SUM(D35:D36),2) -> 217.18
A39: Submódulo 2.2 - GPS, FGTS e Outras Contribuições | C39: % | D39: VALOR (R$)
A40: A | B40: INSS (Art. 22, Inciso I, da Lei 8.212, de 24 de julho de 1991.​) | C40: 0.2 | D40: =($D$31+$D$37)*C40 -> 434.41
A41: B | B41: Salário Educação (Art. 3º, Inciso I, Decreto 87.043, de 22 de março de 1982.​) | C41: 0.025 | D41: =($D$31+$D$37)*C41 -> 54.30125
A42: C | B42: SAT (Art. 22, II, Lei 8.212, de 1991. Resolução MPS/CNPS Nº 1.329, de 25/4/2017.). RAT: 4923-0/02. FAP neutro = 1. Empresa deve preencher de acordo com o valor por ela suportado. | C42: 0.03 | D42: =($D$31+$D$37)*C42 -> 65.1615
A43: D | B43: SESC ou SESI (Art. 30, Lei 8.036, de 11 de maio de 1990.) | C43: 0.015 | D43: 32.58075
A44: E | B44: SENAI - SENAC (Art. 1º, caput, Decreto-Lei 6.246, de 1944 (SENAI) e art. 4º, caput do Decreto-Lei 8.621, de 1946. (SENAC). | C44: 0.01 | D44: 21.7205
A45: F | B45: SEBRAE (Art. 8º, Lei 8.029, de 12 de abril de 1990.) | C45: 0.006 | D45: 13.0323
A46: G | B46: INCRA (Art. 1°, I, 2 c/c art. 3°, ambos do Decreto-Lei 1.146, de 31 de dezembro de 1970.) | C46: 0.002 | D46: 4.3441
A47: H | B47: FGTS | C47: 0.08 | D47: 173.764
A48: TOTAL SUBMÓDULO 2.2 | C48: =SUM(C40:C47) -> 0.368 | D48: =TRUNC(SUM(D40:D47),2) -> 799.31
A50: Submódulo 2.3 - Benefícios Mensais e Diários | D50: VALOR (R$)
A51: A | B51: Auxílio Transporte (Clásula 16ª da CCT) | C51: 4.5 | D51: =IF((C51*2*22)-(D24*6%)>0,(C51*2*22)-(D24*6%),0) -> 80.7078
A52: B | B52: Auxílio Refeição/Alimentação (Clásula 15ª da CCT) | C52: 27.6 | D52: =C52*22 -> 607.2
A53: C | B53: Auxílio Creche (Clásula 19ª da CCT - provisão) | C53: 258.79 | D53: =C53*0.04 -> 10.3516
A54: D | B54: Cesta Básica (Clásula 14ª da CCT) | C54: 106 | D54: =C54 -> 106
A55: E | B55: Plano de Saúde / Plano de Assistência e Cuidado Pessoal (Cláusula 17ª da CCT) | C55: 49.35 | D55: =C55 -> 49.35
A56: TOTAL SUBMÓDULO 2.3 | D56: =TRUNC(SUM(D51:D55),2) -> 853.6
A58: QUADRO-RESUMO DO MÓDULO 2 - ENCARGOS, BENEFÍCIOS ANUAIS, MENSAIS E DIÁRIOS
A59: Módulo 2 - Encargos, Benefícios Anuais, Mensais e Diários | D59: VALOR (R$)
A60: 2.1 | B60: 13º Salário, Férias e Adicional de Férias | D60: =D37 -> 217.18
A61: 2.2 | B61: GPS, FGTS e Outras Contribuições | D61: =D48 -> 799.31
A62: 2.3 | B62: Benefícios Mensais e Diários | D62: =D56 -> 853.6
A63: TOTAL DO MÓDULO 2 | D63: =TRUNC(SUM(D60:D62),2) -> 1870.09
A65: MÓDULO 3 – PROVISÃO PARA RESCISÃO
A66: 3 | B66: PROVISÃO PARA RESCISÃO | C66: % | D66: VALOR (R$)
A67: A | B67: Aviso prévio indenizado (Premissa de que 5% dos funcionários serão demitidos em condições de receber aviso prévio indenizado: 5%/12) | C67: =5%/12 -> 0.004166666667 | D67: =$D$31*C67 -> 8.145291667
A68: B | B68: Incidência do FGTS sobre o Aviso prévio indenizado (incidência de 8% do FGTS sobre o % do aviso prévio indenizado) | C68: =0.08*C67 -> 0.0003333333333 | D68: =$D$31*C68 -> 0.6516233333
A69: C | B69: Multa do FGTS sobre o Aviso Prévio Indenizado (Base de Cálculo da Multa é a soma do módulo 1 com submódulo 2.1 sem incidência dos encargos do 2.2.) | C69: 0.0016 | D69: =($D$31+$D$37)*C69 -> 3.47528
A70: D | B70: Aviso prévio trabalhado (Premissa de que 100% dos funcionários serão demitidos ao final do contrato de 12 meses.) | C70: 0.0194 | D70: =$D$31*C70 -> 37.924478
A71: E | B71: Incidência do Submódulo 2.2 sobre o Aviso Prévio Trabalhado (incidência de 8% do FGTS sobre o % do aviso prévio trabalhado) | C71: =C48*C70 -> 0.0071392 | D71: =$D$31*C71 -> 13.9562079
A72: F | B72: Multa do FGTS sobre o Aviso Prévio Trabalhado (Base de Cálculo da Multa é a soma do módulo 1 com submódulo 2.1 sem incidência dos encargos do 2.2) | C72: =0.4*0.08 -> 0.032 | D72: =$D$31*C72 -> 62.55584
A73: TOTAL DO MÓDULO 3 | D73: =TRUNC(SUM(D67:D72),2) -> 126.7
A75: MÓDULO 4 – CUSTO DE REPOSIÇÃO DO PROFISSIONAL AUSENTE
A76: Base de Cálculo do Custo do Substituto (BCCS) = Módulos 1 + 2 + Férias - (V. Transporte e V. Alimentação) + 3 | D76: VALOR (R$)
A77: Módulo 1 - Remuneração | D77: =D18 -> 1954.87
A78: Módulo 2 - Encargos e Benefícios Anuais, Mensais e Diários | D78: =D63 -> 1870.09
A79: Acréscimo das Férias com incidência do 2.2 | D79: =1/12*D31*(1+C48) -> 222.85518
A80: Desconto do Auxílio-Refeição | D80: =-D52 -> -607.2
A81: Módulo 3 - Provisão para Rescisão | D81: =D73 -> 126.7
A82: TOTAL BCCS | D82: =TRUNC(SUM(D77:D81),2) -> 3567.31
A84: Submódulo 4.1 - Substituto nas Ausências Legais | C84: % | D84: VALOR (R$)
A85: A | B85: Férias | C85: 0 | D85: =$D$82*C85 -> 0
A86: B | B86: Faltas e Ausências Legais | C86: 0 | D86: =$D$82*C86 -> 0
A87: C | B87: Licença Paternidade | C87: 0.0002 | D87: 0.713462
A88: D | B88: Acidente de Trabalho | C88: 0.00051 | D88: 1.8193281
A89: E | B89: Auxílio Doença | C89: 0.00111 | D89: 3.9597141
A90: F | B90: Afastamento Maternidade | C90: 0.00039 | D90: 1.3912509
A91: TOTAL MÓDULO 4 | C91: =TRUNC(SUM(C85:C90),4) -> 0.0022 | D91: =TRUNC(SUM(D85:D90),2) -> 7.88
A93: MÓDULO 5 – INSUMOS DIVERSOS
A94: 5 | B94: INSUMOS DIVERSOS | D94: VALOR (R$)
A95: A | B95: Crachá | D95: ='INSUMOS - Módulo 5'!F13 -> 0.2916666667
A97: TOTAL DO MÓDULO 5 | D97: =TRUNC(SUM(D95:D96),2) -> 0.29
A99: MÓDULO 6 – CUSTOS INDIRETOS, TRIBUTOS E LUCRO
A100: 6 | B100: CUSTOS INDIRETOS, TRIBUTOS E LUCRO | C100: % | D100: VALOR (R$)
A101: A | B101: Custos Indiretos | C101: 0.05 | D101: =TRUNC(C101*D118,2) -> 197.99
A102: B | B102: Subtotal 1 (A + Total Custos Diretos) | D102: =D101+D118 -> 4157.82
A103: C | B103: Lucro | C103: 0.1 | D103: =TRUNC(C103*(D101+D118),2) -> 415.78
A104: D | B104: Subtotal 2 (B+C) | D104: =D102+D103 -> 4573.6
A105: E | B105: TRIBUTOS Tributos (estimado com base no Lucro Presumido - a empresa deverá preencher de acordo com o regime tributário a que é submetida) - (E=(D/(1-Tributos%))x(Tributos%) | C105: 0.0865 | D105: =(D104/(1-C105))*C105 -> 433.0776136
A106: E.1 | B106: COFINS | C106: 0.03
A107: E.2 | B107: PIS | C107: 0.0065
A108: E.3 | B108: ISS | C108: 0.05
A109: TOTAL DO MÓDULO 6 (A+C+E) | D109: =D101+D103+D105 -> 1046.847614
A111: QUADRO RESUMO DO CUSTO POR EMPREGADO
A112: Módulo | D112: VALOR (R$)
A113: A | B113: =A22 -> MÓDULO 1 - COMPOSIÇÃO DA REMUNERAÇÃO | D113: =D31 -> 1954.87
A114: B | B114: =A33 -> MÓDULO 2 – ENCARGOS E BENEFÍCIOS ANUAIS, MENSAIS E DIÁRIOS | D114: =D63 -> 1870.09
A115: C | B115: =A65 -> MÓDULO 3 – PROVISÃO PARA RESCISÃO | D115: =D73 -> 126.7
A116: D | B116: =A75 -> MÓDULO 4 – CUSTO DE REPOSIÇÃO DO PROFISSIONAL AUSENTE | D116: =D91 -> 7.88
A117: E | B117: =A93 -> MÓDULO 5 – INSUMOS DIVERSOS | D117: =D97 -> 0.29
A118: Subtotal (A + B + C + D + E) - Custos Diretos | D118: =TRUNC(SUM(D113:D117),2) -> 3959.83
A119: F | B119: =A99 -> MÓDULO 6 – CUSTOS INDIRETOS, TRIBUTOS E LUCRO | D119: =D109 -> 1046.847614
A120: PREÇO TOTAL POR EMPREGADO / MÊS (CUSTO FIXO) | D120: =D119+D118 -> 5006.677614

Sheet SERVIÇOS GERAIS - Módulos 1 a 6
A1: MÓDULOS 1 A 6 (CUSTOS FIXOS)
A2: Planilha de Custos e Formação de Preços
A3: Auxiliar de Serviços Gerais
A4: Discriminação dos Serviços
A5: Data de apresentação da proposta | D5: Licitante Preencher
A6: Município | D6: Fortaleza - CE
A7: Ano do Acordo, Convenção ou Dissídio Coletivo | D7: CE000086/2025
A8: Tipo de Serviço | D8: Serviços Gerais
A9: Unidade de Medida | D9: Posto
A10: Quantidade máxima passível de contratação em função da unidade de medida | D10: ='QUADRO RESUMO'!G8 -> 2
A11: Nº de meses de execução contratual | D11: 12
A12: Regime Tributário da Empresa | D12: Licitante Preencher
A13: Se Optante pelo Simples Nacional, preencher o faturamento acumulado dos últimos 12 meses | D13: Licitante Preencher
A15: Dados complementares para composição dos custos referente à mão-de-obra
A16: 1 | B16: Tipo de serviço | D16: Serviços Gerais
A17: 2 | B17: Classificação Brasileira de Ocupações (CBO) | D17: 5143-20
A18: 3 | B18: Salário Nominativo da Categoria Profissional | D18: 1535.43
A19: 4 | B19: Ajuste para complementação do salário mínimo até a CCT 2026 | D19: 1621
A20: 5 | B20: Categoria profissional (vinculada à execução contratual) | D20: AUXILIAR DE SERVIÇOS GERAIS
A21: 6 | B21: Data base da categoria (dia/mês/ano) | D21: 2025-01-01
A23: MÓDULO 1 - COMPOSIÇÃO DA REMUNERAÇÃO
A24: 1 | B24: COMPOSIÇÃO DA REMUNERAÇÃO | C24: % | D24: VALOR (R$)
A25: A | B25: Salário Base (Cláusula 3ª) | D25: =D19 -> 1621
A26: B | B26: Adicional Periculosidade | C26: 0.3 | D26: 0
A27: C | B27: Adicional Insalubridade | C27: 20%~40% | D27: 0
A28: D | B28: Adicional Noturno | C28: 0.2 | D28: 0
A29: E | B29: Adicional de Hora Noturna Reduzida | D29: 0
A30: F | B30: Adicional de Hora Extra no Feriado Trabalhado | D30: 0
A31: G | B31: Outros (especificar) | D31: 0
A32: TOTAL DO MÓDULO 1 | D32: =TRUNC(SUM(D25:D31),2) -> 1621
A34: MÓDULO 2 – ENCARGOS E BENEFÍCIOS ANUAIS, MENSAIS E DIÁRIOS
A35: Submódulo 2.1 - 13º Salário, Férias e Adicional de Férias | C35: % | D35: VALOR (R$)
A36: A | B36: 13 (Décimo-terceiro) salário (Valor referente a 1/12 x Remuneração.) | C36: 0.0833 | D36: =$D$32*C36 -> 135.0293
A37: B | B37: Adicional de Férias (Valor referente a 1/3 x 1/12 x Remuneração) | C37: 0.0278 | D37: =C37*D32 -> 45.0638
A38: TOTAL SUBMÓDULO 2.1 | C38: =TRUNC(SUM(C36:C37),4) -> 0.1111 | D38: =TRUNC(SUM(D36:D37),2) -> 180.09
A40: Submódulo 2.2 - GPS, FGTS e Outras Contribuições | C40: % | D40: VALOR (R$)
A41: A | B41: INSS (Art. 22, Inciso I, da Lei 8.212, de 24 de julho de 1991.​) | C41: 0.2 | D41: =($D$32+$D$38)*C41 -> 360.218
A42: B | B42: Salário Educação (Art. 3º, Inciso I, Decreto 87.043, de 22 de março de 1982.​) | C42: 0.025 | D42: =($D$32+$D$38)*C42 -> 45.02725
A43: C | B43: SAT (Art. 22, II, Lei 8.212, de 1991. Resolução MPS/CNPS Nº 1.329, de 25/4/2017.). RAT: 4923-0/02. FAP neutro = 1. Empresa deve preencher de acordo com o valor por ela suportado. | C43: 0.03 | D43: =($D$32+$D$38)*C43 -> 54.0327
A44: D | B44: SESC ou SESI (Art. 30, Lei 8.036, de 11 de maio de 1990.) | C44: 0.015 | D44: 27.01635
A45: E | B45: SENAI - SENAC (Art. 1º, caput, Decreto-Lei 6.246, de 1944 (SENAI) e art. 4º, caput do Decreto-Lei 8.621, de 1946. (SENAC). | C45: 0.01 | D45: 18.0109
A46: F | B46: SEBRAE (Art. 8º, Lei 8.029, de 12 de abril de 1990.) | C46: 0.006 | D46: 10.80654
A47: G | B47: INCRA (Art. 1°, I, 2 c/c art. 3°, ambos do Decreto-Lei 1.146, de 31 de dezembro de 1970.) | C47: 0.002 | D47: 3.60218
A48: H | B48: FGTS | C48: 0.08 | D48: 144.0872
A49: TOTAL SUBMÓDULO 2.2 | C49: =SUM(C41:C48) -> 0.368 | D49: =TRUNC(SUM(D41:D48),2) -> 662.8
A51: Submódulo 2.3 - Benefícios Mensais e Diários | D51: VALOR (R$)
A52: A | B52: Auxílio Transporte (Clásula 16ª da CCT) | C52: 4.5 | D52: =IF((C52*2*22)-(D25*6%)>0,(C52*2*22)-(D25*6%),0) -> 100.74
A53: B | B53: Auxílio Refeição/Alimentação (Clásula 15ª da CCT) | C53: 27.6 | D53: =C53*22 -> 607.2
A54: C | B54: Auxílio Creche (Clásula 19ª da CCT - provisão) | C54: 258.79 | D54: =C54*0.04 -> 10.3516
A55: D | B55: Cesta Básica (Clásula 14ª da CCT) | C55: 106 | D55: =C55 -> 106
A56: E | B56: Plano de Saúde / Plano de Assistência e Cuidado Pessoal (Cláusula 17ª da CCT) | C56: 49.35 | D56: =C56 -> 49.35
A57: TOTAL SUBMÓDULO 2.3 | D57: =TRUNC(SUM(D52:D56),2) -> 873.64
A59: QUADRO-RESUMO DO MÓDULO 2 - ENCARGOS, BENEFÍCIOS ANUAIS, MENSAIS E DIÁRIOS
A60: Módulo 2 - Encargos, Benefícios Anuais, Mensais e Diários | D60: VALOR (R$)
A61: 2.1 | B61: 13º Salário, Férias e Adicional de Férias | D61: =D38 -> 180.09
A62: 2.2 | B62: GPS, FGTS e Outras Contribuições | D62: =D49 -> 662.8
A63: 2.3 | B63: Benefícios Mensais e Diários | D63: =D57 -> 873.64
A64: TOTAL DO MÓDULO 2 | D64: =TRUNC(SUM(D61:D63),2) -> 1716.53
A66: MÓDULO 3 – PROVISÃO PARA RESCISÃO
A67: 3 | B67: PROVISÃO PARA RESCISÃO | C67: % | D67: VALOR (R$)
A68: A | B68: Aviso prévio indenizado (Premissa de que 5% dos funcionários serão demitidos em condições de receber aviso prévio indenizado: 5%/12) | C68: =5%/12 -> 0.004166666667 | D68: =$D$32*C68 -> 6.754166667
A69: B | B69: Incidência do FGTS sobre o Aviso prévio indenizado (incidência de 8% do FGTS sobre o % do aviso prévio indenizado) | C69: =0.08*C68 -> 0.0003333333333 | D69: =$D$32*C69 -> 0.5403333333
A70: C | B70: Multa do FGTS sobre o Aviso Prévio Indenizado (Base de Cálculo da Multa é a soma do módulo 1 com submódulo 2.1 sem incidência dos encargos do 2.2.) | C70: 0.0016 | D70: =($D$32+$D$38)*C70 -> 2.881744
A71: D | B71: Aviso prévio trabalhado (Premissa de que 100% dos funcionários serão demitidos ao final do contrato de 12 meses.) | C71: 0.0194 | D71: =$D$32*C71 -> 31.4474
A72: E | B72: Incidência do Submódulo 2.2 sobre o Aviso Prévio Trabalhado (incidência de 8% do FGTS sobre o % do aviso prévio trabalhado) | C72: =C49*C71 -> 0.0071392 | D72: =$D$32*C72 -> 11.5726432
A73: F | B73: Multa do FGTS sobre o Aviso Prévio Trabalhado (Base de Cálculo da Multa é a soma do módulo 1 com submódulo 2.1 sem incidência dos encargos do 2.2) | C73: =0.4*0.08 -> 0.032 | D73: =$D$32*C73 -> 51.872
A74: TOTAL DO MÓDULO 3 | D74: =TRUNC(SUM(D68:D73),2) -> 105.06
A76: MÓDULO 4 – CUSTO DE REPOSIÇÃO DO PROFISSIONAL AUSENTE
A77: Base de Cálculo do Custo do Substituto (BCCS) = Módulos 1 + 2 + Férias - (V. Transporte e V. Alimentação) + 3 | D77: VALOR (R$)
A78: Módulo 1 - Remuneração | D78: =D19 -> 1621
A79: Módulo 2 - Encargos e Benefícios Anuais, Mensais e Diários | D79: =D64 -> 1716.53
A80: Acréscimo das Férias com incidência do 2.2 | D80: =1/12*D32*(1+C49) -> 184.794
A81: Desconto do Auxílio-Refeição | D81: =-D53 -> -607.2
A82: Módulo 3 - Provisão para Rescisão | D82: =D74 -> 105.06
A83: TOTAL BCCS | D83: =TRUNC(SUM(D78:D82),2) -> 3020.18
A85: Submódulo 4.1 - Substituto nas Ausências Legais | C85: % | D85: VALOR (R$)
A86: A | B86: Férias | C86: 0.08333 | D86: =$D$83*C86 -> 251.6715994
A87: B | B87: Faltas e Ausências Legais | C87: 0.00415 | D87: =$D$83*C87 -> 12.533747
A88: C | B88: Licença Paternidade | C88: 0.0002 | D88: 0.604036
A89: D | B89: Acidente de Trabalho | C89: 0.00051 | D89: 1.5402918
A90: E | B90: Auxílio Doença | C90: 0.00111 | D90: 3.3523998
A91: F | B91: Afastamento Maternidade | C91: 0.00039 | D91: 1.1778702
A92: TOTAL MÓDULO 4 | C92: =TRUNC(SUM(C86:C91),4) -> 0.0896 | D92: =TRUNC(SUM(D86:D91),2) -> 270.87
A94: MÓDULO 5 – INSUMOS DIVERSOS
A95: 5 | B95: INSUMOS DIVERSOS | D95: VALOR (R$)
A96: A | B96: Uniforme | D96: ='INSUMOS - Módulo 5'!F65 -> 67.13333333
A97: B | B97: Insumos | D97: ='INSUMOS - Módulo 5'!F76 -> 68.79
A98: TOTAL DO MÓDULO 5 | D98: =TRUNC(SUM(D96:D97),2) -> 135.92
A100: MÓDULO 6 – CUSTOS INDIRETOS, TRIBUTOS E LUCRO
A101: 6 | B101: CUSTOS INDIRETOS, TRIBUTOS E LUCRO | C101: % | D101: VALOR (R$)
A102: A | B102: Custos Indiretos | C102: 0.05 | D102: =TRUNC(C102*D119,2) -> 192.46
A103: B | B103: Subtotal 1 (A + Total Custos Diretos) | D103: =D102+D119 -> 4041.84
A104: C | B104: Lucro | C104: 0.1 | D104: =TRUNC(C104*(D102+D119),2) -> 404.18
A105: D | B105: Subtotal 2 (B+C) | D105: =D103+D104 -> 4446.02
A106: E | B106: TRIBUTOS Tributos (estimado com base no Lucro Presumido - a empresa deverá preencher de acordo com o regime tributário a que é submetida) - (E=(D/(1-Tributos%))x(Tributos%) | C106: 0.0865 | D106: =(D105/(1-C106))*C106 -> 420.9969677
A107: E.1 | B107: COFINS | C107: 0.03
A108: E.2 | B108: PIS | C108: 0.0065
A109: E.3 | B109: ISS | C109: 0.05
A110: TOTAL DO MÓDULO 6 (A+C+E) | D110: =D102+D104+D106 -> 1017.636968
A112: QUADRO RESUMO DO CUSTO POR EMPREGADO
A113: Módulo | D113: VALOR (R$)
A114: A | B114: =A23 -> MÓDULO 1 - COMPOSIÇÃO DA REMUNERAÇÃO | D114: =D32 -> 1621
A115: B | B115: =A34 -> MÓDULO 2 – ENCARGOS E BENEFÍCIOS ANUAIS, MENSAIS E DIÁRIOS | D115: =D64 -> 1716.53
A116: C | B116: =A66 -> MÓDULO 3 – PROVISÃO PARA RESCISÃO | D116: =D74 -> 105.06
A117: D | B117: =A76 -> MÓDULO 4 – CUSTO DE REPOSIÇÃO DO PROFISSIONAL AUSENTE | D117: =D92 -> 270.87
A118: E | B118: =A94 -> MÓDULO 5 – INSUMOS DIVERSOS | D118: =D98 -> 135.92
A119: Subtotal (A + B + C + D + E) - Custos Diretos | D119: =TRUNC(SUM(D114:D118),2) -> 3849.38
A120: F | B120: =A100 -> MÓDULO 6 – CUSTOS INDIRETOS, TRIBUTOS E LUCRO | D120: =D110 -> 1017.636968
A121: PREÇO TOTAL POR EMPREGADO / MÊS (CUSTO FIXO) | D121: =D120+D119 -> 4867.016968

Sheet COPEIRA - Módulos 1 a 6
A1: MÓDULOS 1 A 6 (CUSTOS FIXOS)
A2: Planilha de Custos e Formação de Preços
A3: Copeira
A4: Discriminação dos Serviços
A5: Data de apresentação da proposta | D5: Licitante Preencher
A6: Município | D6: Fortaleza - CE
A7: Ano do Acordo, Convenção ou Dissídio Coletivo | D7: CE000086/2025
A8: Tipo de Serviço | D8: Copeira
A9: Unidade de Medida | D9: Posto
A10: Quantidade máxima passível de contratação em função da unidade de medida | D10: ='QUADRO RESUMO'!G9 -> 2
A11: Nº de meses de execução contratual | D11: 12
A12: Regime Tributário da Empresa | D12: Licitante Preencher
A13: Se Optante pelo Simples Nacional, preencher o faturamento acumulado dos últimos 12 meses | D13: Licitante Preencher
A15: Dados complementares para composição dos custos referente à mão-de-obra
A16: 1 | B16: Tipo de serviço | D16: Copeira
A17: 2 | B17: Classificação Brasileira de Ocupações (CBO) | D17: 5134-25
A18: 3 | B18: Ajuste para complementação do salário mínimo até a CCT 2026 | D18: 1536.43
A19: 4 | B19: Salário Nominativo da Categoria Profissional | D19: 1621
A20: 5 | B20: Categoria profissional (vinculada à execução contratual) | D20: COPEIRO
A21: 6 | B21: Data base da categoria (dia/mês/ano) | D21: 2025-01-01
A23: MÓDULO 1 - COMPOSIÇÃO DA REMUNERAÇÃO
A24: 1 | B24: COMPOSIÇÃO DA REMUNERAÇÃO | C24: % | D24: VALOR (R$)
A25: A | B25: Salário Base (Cláusula 3ª) | D25: =D19 -> 1621
A26: B | B26: Adicional Periculosidade | C26: 0.3 | D26: 0
A27: C | B27: Adicional Insalubridade | C27: 20%~40% | D27: 0
A28: D | B28: Adicional Noturno | C28: 0.2 | D28: 0
A29: E | B29: Adicional de Hora Noturna Reduzida | D29: 0
A30: F | B30: Adicional de Hora Extra no Feriado Trabalhado | D30: 0
A31: G | B31: Outros (especificar) | D31: 0
A32: TOTAL DO MÓDULO 1 | D32: =TRUNC(SUM(D25:D31),2) -> 1621
A34: MÓDULO 2 – ENCARGOS E BENEFÍCIOS ANUAIS, MENSAIS E DIÁRIOS
A35: Submódulo 2.1 - 13º Salário, Férias e Adicional de Férias | C35: % | D35: VALOR (R$)
A36: A | B36: 13 (Décimo-terceiro) salário (Valor referente a 1/12 x Remuneração.) | C36: 0.0833 | D36: =$D$32*C36 -> 135.0293
A37: B | B37: Adicional de Férias (Valor referente a 1/3 x 1/12 x Remuneração) | C37: 0.0278 | D37: =C37*D32 -> 45.0638
A38: TOTAL SUBMÓDULO 2.1 | C38: =TRUNC(SUM(C36:C37),4) -> 0.1111 | D38: =TRUNC(SUM(D36:D37),2) -> 180.09
A40: Submódulo 2.2 - GPS, FGTS e Outras Contribuições | C40: % | D40: VALOR (R$)
A41: A | B41: INSS (Art. 22, Inciso I, da Lei 8.212, de 24 de julho de 1991.​) | C41: 0.2 | D41: =($D$32+$D$38)*C41 -> 360.218
A42: B | B42: Salário Educação (Art. 3º, Inciso I, Decreto 87.043, de 22 de março de 1982.​) | C42: 0.025 | D42: =($D$32+$D$38)*C42 -> 45.02725
A43: C | B43: SAT (Art. 22, II, Lei 8.212, de 1991. Resolução MPS/CNPS Nº 1.329, de 25/4/2017.). RAT: 4923-0/02. FAP neutro = 1. Empresa deve preencher de acordo com o valor por ela suportado. | C43: 0.03 | D43: =($D$32+$D$38)*C43 -> 54.0327
A44: D | B44: SESC ou SESI (Art. 30, Lei 8.036, de 11 de maio de 1990.) | C44: 0.015 | D44: 27.01635
A45: E | B45: SENAI - SENAC (Art. 1º, caput, Decreto-Lei 6.246, de 1944 (SENAI) e art. 4º, caput do Decreto-Lei 8.621, de 1946. (SENAC). | C45: 0.01 | D45: 18.0109
A46: F | B46: SEBRAE (Art. 8º, Lei 8.029, de 12 de abril de 1990.) | C46: 0.006 | D46: 10.80654
A47: G | B47: INCRA (Art. 1°, I, 2 c/c art. 3°, ambos do Decreto-Lei 1.146, de 31 de dezembro de 1970.) | C47: 0.002 | D47: 3.60218
A48: H | B48: FGTS | C48: 0.08 | D48: 144.0872
A49: TOTAL SUBMÓDULO 2.2 | C49: =SUM(C41:C48) -> 0.368 | D49: =TRUNC(SUM(D41:D48),2) -> 662.8
A51: Submódulo 2.3 - Benefícios Mensais e Diários | D51: VALOR (R$)
A52: A | B52: Auxílio Transporte (Clásula 16ª da CCT) | C52: 4.5 | D52: =IF((C52*2*22)-(D25*6%)>0,(C52*2*22)-(D25*6%),0) -> 100.74
A53: B | B53: Auxílio Refeição/Alimentação (Clásula 15ª da CCT) | C53: 27.6 | D53: =C53*22 -> 607.2
A54: C | B54: Auxílio Creche (Clásula 19ª da CCT - provisão) | C54: 258.79 | D54: =C54*0.04 -> 10.3516
A55: D | B55: Cesta Básica (Clásula 14ª da CCT) | C55: 106 | D55: =C55 -> 106
A56: E | B56: Plano de Saúde / Plano de Assistência e Cuidado Pessoal (Cláusula 17ª da CCT) | C56: 49.35 | D56: =C56 -> 49.35
A57: TOTAL SUBMÓDULO 2.3 | D57: =TRUNC(SUM(D52:D56),2) -> 873.64
A59: QUADRO-RESUMO DO MÓDULO 2 - ENCARGOS, BENEFÍCIOS ANUAIS, MENSAIS E DIÁRIOS
A60: Módulo 2 - Encargos, Benefícios Anuais, Mensais e Diários | D60: VALOR (R$)
A61: 2.1 | B61: 13º Salário, Férias e Adicional de Férias | D61: =D38 -> 180.09
A62: 2.2 | B62: GPS, FGTS e Outras Contribuições | D62: =D49 -> 662.8
A63: 2.3 | B63: Benefícios Mensais e Diários | D63: =D57 -> 873.64
A64: TOTAL DO MÓDULO 2 | D64: =TRUNC(SUM(D61:D63),2) -> 1716.53
A66: MÓDULO 3 – PROVISÃO PARA RESCISÃO
A67: 3 | B67: PROVISÃO PARA RESCISÃO | C67: % | D67: VALOR (R$)
A68: A | B68: Aviso prévio indenizado (Premissa de que 5% dos funcionários serão demitidos em condições de receber aviso prévio indenizado: 5%/12) | C68: =5%/12 -> 0.004166666667 | D68: =$D$32*C68 -> 6.754166667
A69: B | B69: Incidência do FGTS sobre o Aviso prévio indenizado (incidência de 8% do FGTS sobre o % do aviso prévio indenizado) | C69: =0.08*C68 -> 0.0003333333333 | D69: =$D$32*C69 -> 0.5403333333
A70: C | B70: Multa do FGTS sobre o Aviso Prévio Indenizado (Base de Cálculo da Multa é a soma do módulo 1 com submódulo 2.1 sem incidência dos encargos do 2.2.) | C70: 0.0016 | D70: =($D$32+$D$38)*C70 -> 2.881744
A71: D | B71: Aviso prévio trabalhado (Premissa de que 100% dos funcionários serão demitidos ao final do contrato de 12 meses.) | C71: 0.0194 | D71: =$D$32*C71 -> 31.4474
A72: E | B72: Incidência do Submódulo 2.2 sobre o Aviso Prévio Trabalhado (incidência de 8% do FGTS sobre o % do aviso prévio trabalhado) | C72: =C49*C71 -> 0.0071392 | D72: =$D$32*C72 -> 11.5726432
A73: F | B73: Multa do FGTS sobre o Aviso Prévio Trabalhado (Base de Cálculo da Multa é a soma do módulo 1 com submódulo 2.1 sem incidência dos encargos do 2.2) | C73: =0.4*0.08 -> 0.032 | D73: =$D$32*C73 -> 51.872
A74: TOTAL DO MÓDULO 3 | D74: =TRUNC(SUM(D68:D73),2) -> 105.06
A76: MÓDULO 4 – CUSTO DE REPOSIÇÃO DO PROFISSIONAL AUSENTE
A77: Base de Cálculo do Custo do Substituto (BCCS) = Módulos 1 + 2 + Férias - (V. Transporte e V. Alimentação) + 3 | D77: VALOR (R$)
A78: Módulo 1 - Remuneração | D78: =D19 -> 1621
A79: Módulo 2 - Encargos e Benefícios Anuais, Mensais e Diários | D79: =D64 -> 1716.53
A80: Acréscimo das Férias com incidência do 2.2 | D80: =1/12*D32*(1+C49) -> 184.794
A81: Desconto do Auxílio-Refeição | D81: =-D53 -> -607.2
A82: Módulo 3 - Provisão para Rescisão | D82: =D74 -> 105.06
A83: TOTAL BCCS | D83: =TRUNC(SUM(D78:D82),2) -> 3020.18
A85: Submódulo 4.1 - Substituto nas Ausências Legais | C85: % | D85: VALOR (R$)
A86: A | B86: Férias | C86: 0.08333 | D86: =$D$83*C86 -> 251.6715994
A87: B | B87: Faltas e Ausências Legais | C87: 0.00415 | D87: =$D$83*C87 -> 12.533747
A88: C | B88: Licença Paternidade | C88: 0.0002 | D88: 0.604036
A89: D | B89: Acidente de Trabalho | C89: 0.00051 | D89: 1.5402918
A90: E | B90: Auxílio Doença | C90: 0.00111 | D90: 3.3523998
A91: F | B91: Afastamento Maternidade | C91: 0.00039 | D91: 1.1778702
A92: TOTAL MÓDULO 4 | C92: =TRUNC(SUM(C86:C91),4) -> 0.0896 | D92: =TRUNC(SUM(D86:D91),2) -> 270.87
A94: MÓDULO 5 – INSUMOS DIVERSOS
A95: 5 | B95: INSUMOS DIVERSOS | D95: VALOR (R$)
A96: A | B96: Uniforme | D96: ='INSUMOS - Módulo 5'!F40 -> 208.9966667
A97: B | B97: Insumos | D97: ='INSUMOS - Módulo 5'!F55 -> 497.5
A98: TOTAL DO MÓDULO 5 | D98: =TRUNC(SUM(D96:D97),2) -> 706.49
A100: MÓDULO 6 – CUSTOS INDIRETOS, TRIBUTOS E LUCRO
A101: 6 | B101: CUSTOS INDIRETOS, TRIBUTOS E LUCRO | C101: % | D101: VALOR (R$)
A102: A | B102: Custos Indiretos | C102: 0.05 | D102: =TRUNC(C102*D119,2) -> 220.99
A103: B | B103: Subtotal 1 (A + Total Custos Diretos) | D103: =D102+D119 -> 4640.94
A104: C | B104: Lucro | C104: 0.1 | D104: =TRUNC(C104*(D102+D119),2) -> 464.09
A105: D | B105: Subtotal 2 (B+C) | D105: =D103+D104 -> 5105.03
A106: E | B106: TRIBUTOS Tributos (estimado com base no Lucro Presumido - a empresa deverá preencher de acordo com o regime tributário a que é submetida) - (E=(D/(1-Tributos%))x(Tributos%) | C106: 0.0865 | D106: =(D105/(1-C106))*C106 -> 483.3991188
A107: E.1 | B107: COFINS | C107: 0.03
A108: E.2 | B108: PIS | C108: 0.0065
A109: E.3 | B109: ISS | C109: 0.05
A110: TOTAL DO MÓDULO 6 (A+C+E) | D110: =D102+D104+D106 -> 1168.479119
A112: QUADRO RESUMO DO CUSTO POR EMPREGADO
A113: Módulo | D113: VALOR (R$)
A114: A | B114: =A23 -> MÓDULO 1 - COMPOSIÇÃO DA REMUNERAÇÃO | D114: =D32 -> 1621
A115: B | B115: =A34 -> MÓDULO 2 – ENCARGOS E BENEFÍCIOS ANUAIS, MENSAIS E DIÁRIOS | D115: =D64 -> 1716.53
A116: C | B116: =A66 -> MÓDULO 3 – PROVISÃO PARA RESCISÃO | D116: =D74 -> 105.06
A117: D | B117: =A76 -> MÓDULO 4 – CUSTO DE REPOSIÇÃO DO PROFISSIONAL AUSENTE | D117: =D92 -> 270.87
A118: E | B118: =A94 -> MÓDULO 5 – INSUMOS DIVERSOS | D118: =D98 -> 706.49
A119: Subtotal (A + B + C + D + E) - Custos Diretos | D119: =TRUNC(SUM(D114:D118),2) -> 4419.95
A120: F | B120: =A100 -> MÓDULO 6 – CUSTOS INDIRETOS, TRIBUTOS E LUCRO | D120: =D110 -> 1168.479119
A121: PREÇO TOTAL POR EMPREGADO / MÊS (CUSTO FIXO) | D121: =D120+D119 -> 5588.429119

Sheet MOTORISTA - Módulos 1 a 6
A1: MÓDULOS 1 A 6 (CUSTOS FIXOS)
A2: Planilha de Custos e Formação de Preços
A3: Motorista
A4: Discriminação dos Serviços
A5: Data de apresentação da proposta | D5: Licitante Preencher
A6: Município | D6: Fortaleza - CE
A7: Ano do Acordo, Convenção ou Dissídio Coletivo | D7: CE000510/2025
A8: Tipo de Serviço | D8: Motorista
A9: Unidade de Medida | D9: Posto
A10: Quantidade máxima passível de contratação em função da unidade de medida | D10: ='QUADRO RESUMO'!G10 -> 4
A11: Nº de meses de execução contratual | D11: 12
A12: Regime Tributário da Empresa | D12: Licitante Preencher
A13: Se Optante pelo Simples Nacional, preencher o faturamento acumulado dos últimos 12 meses | D13: Licitante Preencher
A15: Dados complementares para composição dos custos referente à mão-de-obra
A16: 1 | B16: Tipo de serviço | D16: Motorista
A17: 2 | B17: Classificação Brasileira de Ocupações (CBO) | D17: 7823-05
A18: 3 | B18: Salário Nominativo da Categoria Profissional | D18: 2171.06
A19: 4 | B19: Categoria profissional (vinculada à execução contratual) | D19: MOTORISTA DE VEÍCULO DE 01 ATÉ 09 LUGARES
A20: 5 | B20: Data base da categoria (dia/mês/ano) | D20: 2025-01-01
A22: MÓDULO 1 - COMPOSIÇÃO DA REMUNERAÇÃO
A23: 1 | B23: COMPOSIÇÃO DA REMUNERAÇÃO | C23: % | D23: VALOR (R$)
A24: A | B24: Salário Base (Cláusula 3ª) | D24: =D18 -> 2171.06
A25: B | B25: Adicional Periculosidade | C25: 0.3 | D25: 0
A26: C | B26: Adicional Insalubridade | C26: 20%~40% | D26: 0
A27: D | B27: Adicional Noturno | C27: 0.2 | D27: 0
A28: E | B28: Adicional de Hora Noturna Reduzida | D28: 0
A29: F | B29: Adicional de Hora Extra no Feriado Trabalhado | D29: 0
A30: G | B30: Outros (especificar) | D30: 0
A31: TOTAL DO MÓDULO 1 | D31: =TRUNC(SUM(D24:D30),2) -> 2171.06
A33: MÓDULO 2 – ENCARGOS E BENEFÍCIOS ANUAIS, MENSAIS E DIÁRIOS
A34: Submódulo 2.1 - 13º Salário, Férias e Adicional de Férias | C34: % | D34: VALOR (R$)
A35: A | B35: 13 (Décimo-terceiro) salário (Valor referente a 1/12 x Remuneração.) | C35: 0.0833 | D35: =$D$31*C35 -> 180.849298
A36: B | B36: Adicional de Férias (Valor referente a 1/3 x 1/12 x Remuneração) | C36: 0.0278 | D36: =C36*D31 -> 60.355468
A37: TOTAL SUBMÓDULO 2.1 | C37: =TRUNC(SUM(C35:C36),4) -> 0.1111 | D37: =TRUNC(SUM(D35:D36),2) -> 241.2
A39: Submódulo 2.2 - GPS, FGTS e Outras Contribuições | C39: % | D39: VALOR (R$)
A40: A | B40: INSS (Art. 22, Inciso I, da Lei 8.212, de 24 de julho de 1991.​) | C40: 0.2 | D40: =($D$31+$D$37)*C40 -> 482.452
A41: B | B41: Salário Educação (Art. 3º, Inciso I, Decreto 87.043, de 22 de março de 1982.​) | C41: 0.025 | D41: =($D$31+$D$37)*C41 -> 60.3065
A42: C | B42: SAT (Art. 22, II, Lei 8.212, de 1991. Resolução MPS/CNPS Nº 1.329, de 25/4/2017.). RAT: 4923-0/02. FAP neutro = 1. Empresa deve preencher de acordo com o valor por ela suportado. | C42: 0.03 | D42: =($D$31+$D$37)*C42 -> 72.3678
A43: D | B43: SESC ou SESI (Art. 30, Lei 8.036, de 11 de maio de 1990.) | C43: 0.015 | D43: 36.1839
A44: E | B44: SENAI - SENAC (Art. 1º, caput, Decreto-Lei 6.246, de 1944 (SENAI) e art. 4º, caput do Decreto-Lei 8.621, de 1946. (SENAC). | C44: 0.01 | D44: 24.1226
A45: F | B45: SEBRAE (Art. 8º, Lei 8.029, de 12 de abril de 1990.) | C45: 0.006 | D45: 14.47356
A46: G | B46: INCRA (Art. 1°, I, 2 c/c art. 3°, ambos do Decreto-Lei 1.146, de 31 de dezembro de 1970.) | C46: 0.002 | D46: 4.82452
A47: H | B47: FGTS | C47: 0.08 | D47: 192.9808
A48: TOTAL SUBMÓDULO 2.2 | C48: =SUM(C40:C47) -> 0.368 | D48: =TRUNC(SUM(D40:D47),2) -> 887.71
A50: Submódulo 2.3 - Benefícios Mensais e Diários | D50: VALOR (R$)
A51: A | B51: Auxílio Transporte (Etufor) | C51: 4.5 | D51: =IF((C51*2*22)-(D24*6%)>0,(C51*2*22)-(D24*6%),0) -> 67.7364
A52: B | B52: Auxílio Refeição/Alimentação (Clausula 10ª) | C52: 27.6 | D52: =C52*22 -> 607.2
A53: C | B53: Cesta Básica (Cláusula 11ª) | C53: 120.61 | D53: =C53 -> 120.61
A54: D | B54: Seguro de Vida | D54: 5.4
A55: E | B55: Plano de Saúde / Plano de Assistência e Cuidado Pessoal (Cláusula 13ª) | C55: 49.35 | D55: =C55 -> 49.35
A56: TOTAL SUBMÓDULO 2.3 | D56: =TRUNC(SUM(D51:D55),2) -> 850.29
A58: QUADRO-RESUMO DO MÓDULO 2 - ENCARGOS, BENEFÍCIOS ANUAIS, MENSAIS E DIÁRIOS
A59: Módulo 2 - Encargos, Benefícios Anuais, Mensais e Diários | D59: VALOR (R$)
A60: 2.1 | B60: 13º Salário, Férias e Adicional de Férias | D60: =D37 -> 241.2
A61: 2.2 | B61: GPS, FGTS e Outras Contribuições | D61: =D48 -> 887.71
A62: 2.3 | B62: Benefícios Mensais e Diários | D62: =D56 -> 850.29
A63: TOTAL DO MÓDULO 2 | D63: =TRUNC(SUM(D60:D62),2) -> 1979.2
A65: MÓDULO 3 – PROVISÃO PARA RESCISÃO
A66: 3 | B66: PROVISÃO PARA RESCISÃO | C66: % | D66: VALOR (R$)
A67: A | B67: Aviso prévio indenizado (Premissa de que 5% dos funcionários serão demitidos em condições de receber aviso prévio indenizado: 5%/12) | C67: =5%/12 -> 0.004166666667 | D67: =$D$31*C67 -> 9.046083333
A68: B | B68: Incidência do FGTS sobre o Aviso prévio indenizado (incidência de 8% do FGTS sobre o % do aviso prévio indenizado) | C68: =0.08*C67 -> 0.0003333333333 | D68: =$D$31*C68 -> 0.7236866667
A69: C | B69: Multa do FGTS sobre o Aviso Prévio Indenizado (Base de Cálculo da Multa é a soma do módulo 1 com submódulo 2.1 sem incidência dos encargos do 2.2.) | C69: 0.0016 | D69: =($D$31+$D$37)*C69 -> 3.859616
A70: D | B70: Aviso prévio trabalhado (Premissa de que 100% dos funcionários serão demitidos ao final do contrato de 12 meses.) | C70: 0.0194 | D70: =$D$31*C70 -> 42.118564
A71: E | B71: Incidência do Submódulo 2.2 sobre o Aviso Prévio Trabalhado (incidência de 8% do FGTS sobre o % do aviso prévio trabalhado) | C71: =C48*C70 -> 0.0071392 | D71: =$D$31*C71 -> 15.49963155
A72: F | B72: Multa do FGTS sobre o Aviso Prévio Trabalhado (Base de Cálculo da Multa é a soma do módulo 1 com submódulo 2.1 sem incidência dos encargos do 2.2) | C72: =0.4*0.08 -> 0.032 | D72: =$D$31*C72 -> 69.47392
A73: TOTAL DO MÓDULO 3 | C73: =TRUNC(SUM(C67:C72),4) -> 0.0646 | D73: =TRUNC(SUM(D67:D72),2) -> 140.72
A75: MÓDULO 4 – CUSTO DE REPOSIÇÃO DO PROFISSIONAL AUSENTE
A76: Base de Cálculo do Custo do Substituto (BCCS) = Módulos 1 + 2 + Férias - (V. Transporte e V. Alimentação) + 3 | D76: VALOR (R$)
A77: Módulo 1 - Remuneração | D77: =D18 -> 2171.06
A78: Módulo 2 - Encargos e Benefícios Anuais, Mensais e Diários | D78: =D63 -> 1979.2
A79: Acréscimo das Férias com incidência do 2.2 | D79: =1/12*D31*(1+C48) -> 247.50084
A80: Desconto do Auxílio-Refeição | D80: =-D52 -> -607.2
A81: Módulo 3 - Provisão para Rescisão | D81: =D73 -> 140.72
A82: TOTAL BCCS | D82: =TRUNC(SUM(D77:D81),2) -> 3931.28
A84: Submódulo 4.1 - Substituto nas Ausências Legais | C84: % | D84: VALOR (R$)
A85: A | B85: Férias | C85: 0.08333 | D85: =$D$82*C85 -> 327.5935624
A86: B | B86: Faltas e Ausências Legais | C86: 0.00415 | D86: =$D$82*C86 -> 16.314812
A87: C | B87: Licença Paternidade | C87: 0.0002 | D87: 0.786256
A88: D | B88: Acidente de Trabalho | C88: 0.00051 | D88: 2.0049528
A89: E | B89: Auxílio Doença | C89: 0.00111 | D89: 4.3637208
A90: F | B90: Afastamento Maternidade | C90: 0.00039 | D90: 1.5331992
A91: TOTAL MÓDULO 4 | C91: =TRUNC(SUM(C85:C90),4) -> 0.0896 | D91: =TRUNC(SUM(D85:D90),2) -> 352.59
A93: MÓDULO 5 – INSUMOS DIVERSOS
A94: 5 | B94: INSUMOS DIVERSOS | D94: VALOR (R$)
A95: A | B95: Uniformes | D95: ='INSUMOS - Módulo 5'!F14 -> 159.6608333
A97: TOTAL DO MÓDULO 5 | D97: =TRUNC(SUM(D95:D96),2) -> 159.66
A99: MÓDULO 6 – CUSTOS INDIRETOS, TRIBUTOS E LUCRO
A100: 6 | B100: CUSTOS INDIRETOS, TRIBUTOS E LUCRO | C100: % | D100: VALOR (R$)
A101: A | B101: Custos Indiretos | C101: 0.05 | D101: =TRUNC(C101*D118,2) -> 240.16
A102: B | B102: Subtotal 1 (A + Total Custos Diretos) | D102: =D101+D118 -> 5043.39
A103: C | B103: Lucro | C103: 0.1 | D103: =TRUNC(C103*(D101+D118),2) -> 504.33
A104: D | B104: Subtotal 2 (B+C) | D104: =D102+D103 -> 5547.72
A105: E | B105: TRIBUTOS Tributos (estimado com base no Lucro Presumido - a empresa deverá preencher de acordo com o regime tributário a que é submetida) - (E=(D/(1-Tributos%))x(Tributos%) | C105: 0.0865 | D105: =(D104/(1-C105))*C105 -> 525.3177668
A106: E.1 | B106: COFINS | C106: 0.03
A107: E.2 | B107: PIS | C107: 0.0065
A108: E.3 | B108: ISS | C108: 0.05
A109: TOTAL DO MÓDULO 6 (A+C+E) | D109: =D101+D103+D105 -> 1269.807767
A111: QUADRO RESUMO DO CUSTO POR EMPREGADO
A112: Módulo | D112: VALOR (R$)
A113: A | B113: =A22 -> MÓDULO 1 - COMPOSIÇÃO DA REMUNERAÇÃO | D113: =D31 -> 2171.06
A114: B | B114: =A33 -> MÓDULO 2 – ENCARGOS E BENEFÍCIOS ANUAIS, MENSAIS E DIÁRIOS | D114: =D63 -> 1979.2
A115: C | B115: =A65 -> MÓDULO 3 – PROVISÃO PARA RESCISÃO | D115: =D73 -> 140.72
A116: D | B116: =A75 -> MÓDULO 4 – CUSTO DE REPOSIÇÃO DO PROFISSIONAL AUSENTE | D116: =D91 -> 352.59
A117: E | B117: =A93 -> MÓDULO 5 – INSUMOS DIVERSOS | D117: =D97 -> 159.66
A118: Subtotal (A + B + C + D + E) - Custos Diretos | D118: =TRUNC(SUM(D113:D117),2) -> 4803.23
A119: F | B119: =A99 -> MÓDULO 6 – CUSTOS INDIRETOS, TRIBUTOS E LUCRO | D119: =D109 -> 1269.807767
A120: Subtotal (A + B + C + D + E + F) - Custo Fixo | D120: =D119+D118 -> 6073.037767
A121: G | B121: ='MOTORISTA - DIÁRIAS - Módulo 7'!A1 -> MÓDULO 7 - DIÁRIAS (CUSTOS VARIÁVEIS) | D121: ='MOTORISTA - DIÁRIAS - Módulo 7'!C31 -> 2368.449577
A122: PREÇO MENSAL TOTAL POR EMPREGADO / POSTO DE TRABALHO (CUSTO FIXO + VARIÁVEL) | D122: =D120+D121 -> 8441.487344

Sheet MOTORISTA - DIÁRIAS - Módulo 7
A1: MÓDULO 7 - DIÁRIAS (CUSTOS VARIÁVEIS)
A2: Formação de Preços de Diárias (por posto)
A3: Valor da Diária - Interestadual
A4: Diária a ser paga ao motorista | C4: =C16*1.2 -> 170.268
A6: Tributos a serem retidos
A7: ISS | B7: 0.05 | C7: =C11*B7 -> 11.41971831
A8: TRIBUTOS FEDERAIS (IN RFB 1234/2012) | B8: 0.0945 | C8: =C11*B8 -> 21.58326761
A9: INSS | B9: 0.11 | C9: =C11*B9 -> 25.12338028
A10: Total | B10: =SUM(B7:B9) -> 0.2545 | C10: =SUM(C7:C9) -> 58.1263662
A11: Subtotal | C11: =(C4/0.7455) -> 228.3943662
A12: Custos indiretos | B12: 0.02 | C12: =C11*B12 -> 4.567887324
A13: Preço total de 1 (uma) diária em capital para 1 (um) posto | C13: =SUM(C11:C12) -> 232.9622535
A15: Valor da Diária - Intermunicipal
A16: Diária a ser paga ao motorista | C16: 141.89
A18: Tributos a serem retidos
A19: ISS | B19: 0.05 | C19: =C23*B19 -> 9.516431925
A20: TRIBUTOS FEDERAIS (IN RFB 1234/2012) | B20: 0.0945 | C20: =C23*B20 -> 17.98605634
A21: INSS | B21: 0.11 | C21: =C23*B21 -> 20.93615023
A22: Total | B22: =SUM(B19:B21) -> 0.2545 | C22: =SUM(C19:C21) -> 48.4386385
A23: Subtotal | C23: =(C16/0.7455) -> 190.3286385
A24: Custos indiretos | B24: 0.02 | C24: =C23*B24 -> 3.80657277
A25: Preço total de 1 (uma) diária nas demais localidades para 1 (um) posto | C25: =SUM(C23:C24) -> 194.1352113
A27: TOTAL DIÁRIAS / MÊS
A28: Quantidade de diárias por mês para cada posto | B28: Diárias | C28: Valor
A29: Diárias/mês por posto - Interestadual | B29: 1 | C29: =B29*C13 -> 232.9622535
A30: Diárias/mês por posto - Intermunicipal | B30: 11 | C30: =B30*C25 -> 2135.487324
A31: Total | B31: =SUM(B29:B30) -> 12 | C31: =C29+C30 -> 2368.449577
A33: * Cláusula 15ª da CCT.
A34: * O modelo aqui apresentado serve de referência, e apresenta os percentuais máximos de retenção de tributos. A contratada deverá justificar os percentuais de retenção, conforme a legislação aplicável, caso sejam diferentes.
A35: * Fórmula do preço total de uma diária (valor bruto): Diária a ser pago ao motorista * 0,7455
A36: * Tributos calculados através do coeficiente (1 - (5% + 9,45% + 11%)) = 0,7455
A37: * Percentual máximo admitido de custos indiretos (2%) - a contratada poderá reduzir, conforme sua realidade
A38: * Planilha a ser apresentada pela contratada, junto com a nota fiscal.

Sheet RECEPCIONISTA - Módulos 1 a 6
A1: MÓDULOS 1 A 6 (CUSTOS FIXOS)
A2: Planilha de Custos e Formação de Preços
A3: Recepcionista
A4: Discriminação dos Serviços
A5: Data de apresentação da proposta | D5: Licitante Preencher
A6: Município | D6: Fortaleza - CE
A7: Ano do Acordo, Convenção ou Dissídio Coletivo | D7: CE000086/2025
A8: Tipo de Serviço | D8: Recepcionista
A9: Unidade de Medida | D9: Posto
A10: Quantidade máxima passível de contratação em função da unidade de medida | D10: ='QUADRO RESUMO'!G11 -> 2
A11: Nº de meses de execução contratual | D11: 12
A12: Regime Tributário da Empresa | D12: Licitante Preencher
A13: Se Optante pelo Simples Nacional, preencher o faturamento acumulado dos últimos 12 meses | D13: Licitante Preencher
A15: Dados complementares para composição dos custos referente à mão-de-obra
A16: 1 | B16: Tipo de serviço | D16: Recepcionista
A17: 2 | B17: Classificação Brasileira de Ocupações (CBO) | D17: 4221-05
A18: 3 | B18: Salário Nominativo da Categoria Profissional | D18: 1675.04
A19: 4 | B19: Categoria profissional (vinculada à execução contratual) | D19: RECEPCIONISTA
A20: 5 | B20: Data base da categoria (dia/mês/ano) | D20: 2025-01-01
A22: MÓDULO 1 - COMPOSIÇÃO DA REMUNERAÇÃO
A23: 1 | B23: COMPOSIÇÃO DA REMUNERAÇÃO | C23: % | D23: VALOR (R$)
A24: A | B24: Salário Base (Cláusula 3ª) | D24: =D18 -> 1675.04
A25: B | B25: Adicional Periculosidade | C25: 0.3 | D25: 0
A26: C | B26: Adicional Insalubridade | C26: 20%~40% | D26: 0
A27: D | B27: Adicional Noturno | C27: 0.2 | D27: 0
A28: E | B28: Adicional de Hora Noturna Reduzida | D28: 0
A29: F | B29: Adicional de Hora Extra no Feriado Trabalhado | D29: 0
A30: G | B30: Outros (especificar) | D30: 0
A31: TOTAL DO MÓDULO 1 | D31: =TRUNC(SUM(D24:D30),2) -> 1675.04
A33: MÓDULO 2 – ENCARGOS E BENEFÍCIOS ANUAIS, MENSAIS E DIÁRIOS
A34: Submódulo 2.1 - 13º Salário, Férias e Adicional de Férias | C34: % | D34: VALOR (R$)
A35: A | B35: 13 (Décimo-terceiro) salário (Valor referente a 1/12 x Remuneração.) | C35: 0.0833 | D35: =$D$31*C35 -> 139.530832
A36: B | B36: Adicional de Férias (Valor referente a 1/3 x 1/12 x Remuneração) | C36: 0.0278 | D36: =C36*D31 -> 46.566112
A37: TOTAL SUBMÓDULO 2.1 | C37: =TRUNC(SUM(C35:C36),4) -> 0.1111 | D37: =TRUNC(SUM(D35:D36),2) -> 186.09
A39: Submódulo 2.2 - GPS, FGTS e Outras Contribuições | C39: % | D39: VALOR (R$)
A40: A | B40: INSS (Art. 22, Inciso I, da Lei 8.212, de 24 de julho de 1991.​) | C40: 0.2 | D40: =($D$31+$D$37)*C40 -> 372.226
A41: B | B41: Salário Educação (Art. 3º, Inciso I, Decreto 87.043, de 22 de março de 1982.​) | C41: 0.025 | D41: =($D$31+$D$37)*C41 -> 46.52825
A42: C | B42: SAT (Art. 22, II, Lei 8.212, de 1991. Resolução MPS/CNPS Nº 1.329, de 25/4/2017.). RAT: 4923-0/02. FAP neutro = 1. Empresa deve preencher de acordo com o valor por ela suportado. | C42: 0.03 | D42: =($D$31+$D$37)*C42 -> 55.8339
A43: D | B43: SESC ou SESI (Art. 30, Lei 8.036, de 11 de maio de 1990.) | C43: 0.015 | D43: 27.91695
A44: E | B44: SENAI - SENAC (Art. 1º, caput, Decreto-Lei 6.246, de 1944 (SENAI) e art. 4º, caput do Decreto-Lei 8.621, de 1946. (SENAC). | C44: 0.01 | D44: 18.6113
A45: F | B45: SEBRAE (Art. 8º, Lei 8.029, de 12 de abril de 1990.) | C45: 0.006 | D45: 11.16678
A46: G | B46: INCRA (Art. 1°, I, 2 c/c art. 3°, ambos do Decreto-Lei 1.146, de 31 de dezembro de 1970.) | C46: 0.002 | D46: 3.72226
A47: H | B47: FGTS | C47: 0.08 | D47: 148.8904
A48: TOTAL SUBMÓDULO 2.2 | C48: =SUM(C40:C47) -> 0.368 | D48: =TRUNC(SUM(D40:D47),2) -> 684.89
A50: Submódulo 2.3 - Benefícios Mensais e Diários | D50: VALOR (R$)
A51: A | B51: Auxílio Transporte (Clásula 16ª da CCT) | C51: 4.5 | D51: =IF((C51*2*22)-(D24*6%)>0,(C51*2*22)-(D24*6%),0) -> 97.4976
A52: B | B52: Auxílio Refeição/Alimentação (Clásula 15ª da CCT) | C52: 27.6 | D52: =C52*22 -> 607.2
A53: C | B53: Auxílio Creche (Clásula 19ª da CCT - provisão) | C53: 258.79 | D53: =C53*0.04 -> 10.3516
A54: D | B54: Cesta Básica (Clásula 14ª da CCT) | C54: 106 | D54: =C54 -> 106
A55: E | B55: Plano de Saúde / Plano de Assistência e Cuidado Pessoal (Cláusula 17ª da CCT) | C55: 49.35 | D55: =C55 -> 49.35
A56: TOTAL SUBMÓDULO 2.3 | D56: =TRUNC(SUM(D51:D55),2) -> 870.39
A58: QUADRO-RESUMO DO MÓDULO 2 - ENCARGOS, BENEFÍCIOS ANUAIS, MENSAIS E DIÁRIOS
A59: Módulo 2 - Encargos, Benefícios Anuais, Mensais e Diários | D59: VALOR (R$)
A60: 2.1 | B60: 13º Salário, Férias e Adicional de Férias | D60: =D37 -> 186.09
A61: 2.2 | B61: GPS, FGTS e Outras Contribuições | D61: =D48 -> 684.89
A62: 2.3 | B62: Benefícios Mensais e Diários | D62: =D56 -> 870.39
A63: TOTAL DO MÓDULO 2 | D63: =TRUNC(SUM(D60:D62),2) -> 1741.37
A65: MÓDULO 3 – PROVISÃO PARA RESCISÃO
A66: 3 | B66: PROVISÃO PARA RESCISÃO | C66: % | D66: VALOR (R$)
A67: A | B67: Aviso prévio indenizado (Premissa de que 5% dos funcionários serão demitidos em condições de receber aviso prévio indenizado: 5%/12) | C67: =5%/12 -> 0.004166666667 | D67: =$D$31*C67 -> 6.979333333
A68: B | B68: Incidência do FGTS sobre o Aviso prévio indenizado (incidência de 8% do FGTS sobre o % do aviso prévio indenizado) | C68: =0.08*C67 -> 0.0003333333333 | D68: =$D$31*C68 -> 0.5583466667
A69: C | B69: Multa do FGTS sobre o Aviso Prévio Indenizado (Base de Cálculo da Multa é a soma do módulo 1 com submódulo 2.1 sem incidência dos encargos do 2.2.) | C69: 0.0016 | D69: =($D$31+$D$37)*C69 -> 2.977808
A70: D | B70: Aviso prévio trabalhado (Premissa de que 100% dos funcionários serão demitidos ao final do contrato de 12 meses.) | C70: 0.0194 | D70: =$D$31*C70 -> 32.495776
A71: E | B71: Incidência do Submódulo 2.2 sobre o Aviso Prévio Trabalhado (incidência de 8% do FGTS sobre o % do aviso prévio trabalhado) | C71: =C48*C70 -> 0.0071392 | D71: =$D$31*C71 -> 11.95844557
A72: F | B72: Multa do FGTS sobre o Aviso Prévio Trabalhado (Base de Cálculo da Multa é a soma do módulo 1 com submódulo 2.1 sem incidência dos encargos do 2.2) | C72: =0.4*0.08 -> 0.032 | D72: =$D$31*C72 -> 53.60128
A73: TOTAL DO MÓDULO 3 | D73: =TRUNC(SUM(D67:D72),2) -> 108.57
A75: MÓDULO 4 – CUSTO DE REPOSIÇÃO DO PROFISSIONAL AUSENTE
A76: Base de Cálculo do Custo do Substituto (BCCS) = Módulos 1 + 2 + Férias - (V. Transporte e V. Alimentação) + 3 | D76: VALOR (R$)
A77: Módulo 1 - Remuneração | D77: =D18 -> 1675.04
A78: Módulo 2 - Encargos e Benefícios Anuais, Mensais e Diários | D78: =D63 -> 1741.37
A79: Acréscimo das Férias com incidência do 2.2 | D79: =1/12*D31*(1+C48) -> 190.95456
A80: Desconto do Auxílio-Refeição | D80: =-D52 -> -607.2
A81: Módulo 3 - Provisão para Rescisão | D81: =D73 -> 108.57
A82: TOTAL BCCS | D82: =TRUNC(SUM(D77:D81),2) -> 3108.73
A84: Submódulo 4.1 - Substituto nas Ausências Legais | C84: % | D84: VALOR (R$)
A85: A | B85: Férias | C85: 0.08333 | D85: =$D$82*C85 -> 259.0504709
A86: B | B86: Faltas e Ausências Legais | C86: 0.00415 | D86: =$D$82*C86 -> 12.9012295
A87: C | B87: Licença Paternidade | C87: 0.0002 | D87: 0.621746
A88: D | B88: Acidente de Trabalho | C88: 0.00051 | D88: 1.5854523
A89: E | B89: Auxílio Doença | C89: 0.00111 | D89: 3.4506903
A90: F | B90: Afastamento Maternidade | C90: 0.00039 | D90: 1.2124047
A91: TOTAL MÓDULO 4 | C91: =TRUNC(SUM(C85:C90),4) -> 0.0896 | D91: =TRUNC(SUM(D85:D90),2) -> 278.82
A93: MÓDULO 5 – INSUMOS DIVERSOS
A94: 5 | B94: INSUMOS DIVERSOS | D94: VALOR (R$)
A95: A | B95: Uniforme | D95: ='INSUMOS - Módulo 5'!F27 -> 266.83
A97: TOTAL DO MÓDULO 5 | D97: =TRUNC(SUM(D95:D96),2) -> 266.83
A99: MÓDULO 6 – CUSTOS INDIRETOS, TRIBUTOS E LUCRO
A100: 6 | B100: CUSTOS INDIRETOS, TRIBUTOS E LUCRO | C100: % | D100: VALOR (R$)
A101: A | B101: Custos Indiretos | C101: 0.05 | D101: =TRUNC(C101*D118,2) -> 203.53
A102: B | B102: Subtotal 1 (A + Total Custos Diretos) | D102: =D101+D118 -> 4274.16
A103: C | B103: Lucro | C103: 0.1 | D103: =TRUNC(C103*(D101+D118),2) -> 427.41
A104: D | B104: Subtotal 2 (B+C) | D104: =D102+D103 -> 4701.57
A105: E | B105: TRIBUTOS Tributos (estimado com base no Lucro Presumido - a empresa deverá preencher de acordo com o regime tributário a que é submetida) - (E=(D/(1-Tributos%))x(Tributos%) | C105: 0.0865 | D105: =(D104/(1-C105))*C105 -> 445.1951888
A106: E.1 | B106: COFINS | C106: 0.03
A107: E.2 | B107: PIS | C107: 0.0065
A108: E.3 | B108: ISS | C108: 0.05
A109: TOTAL DO MÓDULO 6 (A+C+E) | D109: =D101+D103+D105 -> 1076.135189
A111: QUADRO RESUMO DO CUSTO POR EMPREGADO
A112: Módulo | D112: VALOR (R$)
A113: A | B113: =A22 -> MÓDULO 1 - COMPOSIÇÃO DA REMUNERAÇÃO | D113: =D31 -> 1675.04
A114: B | B114: =A33 -> MÓDULO 2 – ENCARGOS E BENEFÍCIOS ANUAIS, MENSAIS E DIÁRIOS | D114: =D63 -> 1741.37
A115: C | B115: =A65 -> MÓDULO 3 – PROVISÃO PARA RESCISÃO | D115: =D73 -> 108.57
A116: D | B116: =A75 -> MÓDULO 4 – CUSTO DE REPOSIÇÃO DO PROFISSIONAL AUSENTE | D116: =D91 -> 278.82
A117: E | B117: =A93 -> MÓDULO 5 – INSUMOS DIVERSOS | D117: =D97 -> 266.83
A118: Subtotal (A + B + C + D + E) - Custos Diretos | D118: =TRUNC(SUM(D113:D117),2) -> 4070.63
A119: F | B119: =A99 -> MÓDULO 6 – CUSTOS INDIRETOS, TRIBUTOS E LUCRO | D119: =D109 -> 1076.135189
A120: PREÇO TOTAL POR EMPREGADO / MÊS (CUSTO FIXO) | D120: =D119+D118 -> 5146.765189

Sheet INSUMOS - Módulo 5
A1: MÓDULO 5 – INSUMOS DIVERSOS
A2: Formação de Preços de Insumos (por posto)
A4: Motorista
A5: Uniforme
A6: Descrição | B6: Unidade | C6: Quantidade | D6: Valor Unitário | E6: Valor Anual | F6: Valor Mensal
A7: Calça jeans tradicional | B7: Unidade | C7: 10 | D7: 100 | E7: =D7*C7 -> 1000 | F7: =E7/12 -> 83.33333333
A8: Camisa social branca (As camisas devem ter a mesma padronização, com o logo da empresa na altura do peito, do lado esquerdo. Nas costas, deve constar a inscrição: "A serviço da Codevasf".) | B8: Unidade | C8: 5 | D8: 85 | E8: =D8*C8 -> 425 | F8: =E8/12 -> 35.41666667
A9: Camisa gola polo banca (As camisas devem ter a mesma padronização, com o logo da empresa na altura do peito, do lado esquerdo. Nas costas, deve constar a inscrição: "A serviço da Codevasf".) | B9: Unidade | C9: 5 | D9: 18.94 | E9: 94.7 | F9: 7.891666667
A10: Par de meia social preta | B10: Par | C10: 10 | D10: 12 | E10: 120 | F10: 10
A11: Sapato / bota preta | B11: Par | C11: 2 | D11: 113 | E11: 226 | F11: 18.83333333
A12: Cinto social preto | B12: Unidade | C12: 1 | D12: 46.73 | E12: 46.73 | F12: 3.894166667
A13: Crachá | B13: Unidade | C13: 1 | D13: 3.5 | E13: 3.5 | F13: 0.2916666667
A14: Total | E14: =SUM(E7:E13) -> 1915.93 | F14: =SUM(F7:F13) -> 159.6608333
A16: Recepcionista
A17: Uniforme
A18: Descrição | B18: Unidade | C18: Quantidade | D18: Valor Unitário | E18: Valor Anual | F18: Valor Mensal
A19: Blazer social casual feminino com gola, 2 bolsos embutidos na linha de cintura, cor azul marinho ou preta | B19: Unidade | C19: 10 | D19: 145 | E19: =D19*C19 -> 1450 | F19: =E19/12 -> 120.8333333
A20: Blusa básica social feminina, mangas longas punhos livres, sem bolso, tecido Oxford Camisaria cor branca ou azul royal. | B20: Unidade | C20: 10 | D20: 50.38 | E20: =D20*C20 -> 503.8 | F20: =E20/12 -> 41.98333333
A21: Calça social feminina, corte reto, na cor azul marinho ou preta | B21: Unidade | C21: 10 | D21: 80.49 | E21: 804.9 | F21: 67.075
A22: Par de meias, na cor preta | B22: Par | C22: 10 | D22: 10.65 | E22: 106.5 | F22: 8.875
A23: Laço para cabelo com tela | B23: Unidade | C23: 4 | D23: 11.14 | E23: 44.56 | F23: 3.713333333
A24: Lenço para pescoço | B24: Unidade | C24: 2 | D24: 24.45 | E24: 48.9 | F24: 4.075
A25: Sapato social | B25: Par | C25: 2 | D25: 119.9 | E25: 239.8 | F25: 19.98333333
A26: Crachá | B26: Unidade | C26: 1 | D26: 3.5 | E26: 3.5 | F26: 0.2916666667
A27: Total | E27: =SUM(E19:E26) -> 3201.96 | F27: =SUM(F19:F26) -> 266.83
A29: Copeira
A30: Uniforme
A31: Descrição | B31: Unidade | C31: Quantidade | D31: Valor Unitário | E31: Valor Anual | F31: Valor Mensal
A32: Colete para uniforme, na cor azul marinho ou preta, fechamento em botões, sem manga, com a logomarca da empresa localizada no lado esquerdo do peito na parte da frente, e a inscrição "A SERVIÇO DA CODEVASF 14ª/SR" centralizada nas costas | B32: Unidade | C32: 10 | D32: 76.89 | E32: =D32*C32 -> 768.9 | F32: =E32/12 -> 64.075
A33: Blusa básica feminina, malha fria, cor branca | B33: Unidade | C33: 10 | D33: 50.38 | E33: 503.8 | F33: =E33/12 -> 41.98333333
A34: Avental de cintura na cor branco | B34: Unidade | C34: 2 | D34: 18 | E34: 36 | F34: 3
A35: Calça social feminina, corte reto | B35: Unidade | C35: 10 | D35: 80.49 | E35: 804.9 | F35: 67.075
A36: Par de meias, na cor preta | B36: Par | C36: 10 | D36: 10.65 | E36: 106.5 | F36: 8.875
A37: Laço para cabelo com tela | B37: Unidade | C37: 4 | D37: 11.14 | E37: 44.56 | F37: 3.713333333
A38: Sapato social | B38: Par | C38: 2 | D38: 119.9 | E38: 239.8 | F38: 19.98333333
A39: Crachá | B39: Unidade | C39: 1 | D39: 3.5 | E39: 3.5 | F39: 0.2916666667
A40: Total | E40: =SUM(E32:E39) -> 2507.96 | F40: =SUM(F32:F39) -> 208.9966667
A41: Insumos
A42: Descrição | B42: Unidade | C42: Quantidade | D42: Valor Unitário | E42: Valor Anual | F42: Valor Mensal
A43: CAFÉ, apresentação: torrado moído, intensidade: intensa ou extra forte, tipo: tradicional, empacotamento: vácuo. Marca: 3 Corações ou similar | B43: 500 g | C43: =15*12 -> 180 | D43: 26.14 | E43: =D43*C43 -> 4705.2 | F43: =E43/12 -> 392.1
A44: AÇÚCAR, tipo: refinado, coloração: branca | B44: 1 Kg | C44: =1*12 -> 12 | D44: 3.95 | E44: 47.4 | F44: =E44/12 -> 3.95
A45: Adoçante Dietético Líquido Características Técnicas: -Adoçante à base de aspartame; - Líquido com conteúdo mínimo de 100 ml; -Frasco plástico com bico tipo conta gotas | B45: Unidade | C45: =1*12 -> 12 | D45: 4.75 | E45: 57 | F45: 4.75
A46: Detergente para lavar louça – 500 ml, 100% biodegradável com Registro ANVISA - Limpol/Ipê ou similar | B46: Unidade | C46: =3*12 -> 36 | D46: 1.52 | E46: 54.72 | F46: 4.56
A47: Esponja dupla face verde/amarelo – 3M, Scoth brite ou similar | B47: unidade | C47: =6*12 -> 72 | D47: 1.63 | E47: 117.36 | F47: 9.78
A48: Lã/ esponja de aço – Bombril ou similar | B48: Unidade | C48: =1*12 -> 12 | D48: 1.77 | E48: 21.24 | F48: 1.77
A49: Papel Toalha | B49: Pct 2 Rolos | C49: =2*12 -> 24 | D49: 18.89 | E49: 453.36 | F49: 37.78
A50: Guardanapo | B50: Unidade | C50: =2*12 -> 24 | D50: 2.5 | E50: 60 | F50: 5
A51: Rodo para pia | B51: Unidade | C51: =1*12 -> 12 | D51: 4.49 | E51: 53.88 | F51: 4.49
A52: Sabão em barra de 1° qualidade – pacote com barras de 200 g, totalizando 1 Kg. 100% biodegradável com Registro ANVISA | B52: Unidade | C52: =1*12 -> 12 | D52: 3.2 | E52: 38.4 | F52: 3.2
A53: Copo descartável de 150 ml | B53: Pct 100 unidades | C53: =6*12 -> 72 | D53: 3.93 | E53: 282.96 | F53: 23.58
A54: Copo descartável de 50 ml | B54: Pct 100 unidades | C54: =3*12 -> 36 | D54: 2.18 | E54: 78.48 | F54: =E54/12 -> 6.54
A55: Total | E55: =SUM(E43:E54) -> 5970 | F55: =SUM(F43:F54) -> 497.5
A57: Auxiliar de serviços gerais
A58: Uniforme
A59: Descrição | B59: Unidade | C59: Quantidade | D59: Valor Unitário | E59: Valor Anual | F59: Valor Mensal
A60: Camiseta para uniforme, na cor azul marinho, manga curta, com a logomarca da empresa localizada no lado esquerdo do peito na parte da frente, e a inscrição "A SERVIÇO DA CODEVASF 14ª/SR" centralizada nas costas | B60: Unidade | C60: 10 | D60: 22.11 | E60: =D60*C60 -> 221.1 | F60: =E60/12 -> 18.425
A61: Calça comprida, na cor azul marinho ou preta, com elástico e cordão, em tecido brim | B61: Unidade | C61: 10 | D61: 33 | E61: =D61*C61 -> 330 | F61: =E61/12 -> 27.5
A62: Par de meias, na cor preta | B62: Unidade | C62: 10 | D62: 15 | E62: =D62*C62 -> 150 | F62: 12.5
A63: Sapato antiderrapante profissional para trabalho, na cor preta | B63: Unidade | C63: 2 | D63: 50.5 | E63: =D63*C63 -> 101 | F63: 8.416666667
A64: Crachá | B64: Unidade | C64: 1 | D64: 3.5 | E64: =D64*C64 -> 3.5 | F64: 0.2916666667
A65: Total | E65: =SUM(E60:E64) -> 805.6 | F65: =SUM(F60:F64) -> 67.13333333
A66: Insumos
A67: Descrição | B67: Unidade | C67: Quantidade | D67: Valor Unitário | E67: Valor Anual | F67: Valor Mensal
A68: Água sanitária de 1ª qualidade com registro ANVISA | B68: unidade | C68: =1*12 -> 12 | D68: 2.53 | E68: =D68*C68 -> 30.36 | F68: =E68/12 -> 2.53
A69: Álcool de 1ª qualidade, 70º INPM. Frasco de 1 litro, com registro ANVISA | B69: Litro | C69: =2*12 -> 24 | D69: 6.02 | E69: 144.48 | F69: =E69/12 -> 12.04
A70: Limpador líquido multiuso concentrado – Veja ou similar | B70: Unidade | C70: =2*12 -> 24 | D70: 3 | E70: 72 | F70: 6
A71: Luva de látex natural de 1° qualidade | B71: Par | C71: =1*12 -> 12 | D71: 2.76 | E71: 33.12 | F71: 2.76
A72: Pano multiuso | B72: Rolo | C72: =1*12 -> 12 | D72: 22.04 | E72: 264.48 | F72: 22.04
A73: Saco de lixo 100 L | B73: Unidade | C73: =1*12 -> 12 | D73: 7.5 | E73: 90 | F73: 7.5
A74: Sabão em pó 100% biodegradável com Registro ANVISA | B74: Kg | C74: =1*12 -> 12 | D74: 4.82 | E74: 57.84 | F74: 4.82
A75: Vassoura de pelo 40 cm c/ cabo de madeira, Noviça/Bettanin, Condor ou similar. | B75: Unidade | C75: =1*12 -> 12 | D75: 11.1 | E75: 133.2 | F75: 11.1
A76: Total | E76: =SUM(E68:E75) -> 825.48 | F76: =SUM(F68:F75) -> 68.79
A78: Observações
A79: * Conforme o art. 30, inciso V, § 2º, do Regulamento Interno de Licitações e Contratos (Deliberação nº 08, de 26/02/2024), e o item 4.2.6.6 da Norma de Pesquisa e Definição dos Preços de Referência para Licitações de Bens e Serviços (Resolução nº 661, de 04 de junho de 2025), utilizou-se como parâmetro a pesquisa de preços realizada no Compras.gov.br, considerando a mediana dos valores obtidos.
A82: * O quantitativo dos insumos foi rateado para a estipulação do custo mensal, mas o fornecimento, ao longo da execução do contrato, pode sofrer ajustes, para mais ou para menos, conforme a necessidade do serviço, sempre respeitando os quantitativos totais estimados.
A85: * Quanto aos uniformes, a quantidade estipulada refere-se ao quantitativo anual. A entrega dos itens deve ser realizada em duas etapas: a primeira no início do contrato e a segunda no segundo semestre de vigência.
A88: * Data base da pesquisa: 20/10/2025.
